[Event "Mitropa Cup Open 2024"]
[Site "Apolda"]
[Date "2024.02.18"]
[Round "4.14"]
[White "Goroshkov, Maksym"]
[Black "Bogner, Sebastian"]
[Result "0-1"]
[ECO "B50"]
[WhiteElo "2338"]
[BlackElo "2538"]
[Annotator "RC"]
[PlyCount "62"]
[EventDate "2024.02.15"]
[EventType "team-tourn"]
[EventCountry "GER"]
[SourceTitle "playchess.com"]
[Source "ChessBase"]
[SourceQuality "1"]
[WhiteTeam "Slovenia"]
[BlackTeam "Switzerland"]
[WhiteTeamCountry "SLO"]
[BlackTeamCountry "SUI"]
[TimeControl "40/5400+30:1800+30"]

1. e4 {[%emt 0:00:46]} c5 {[%emt 0:00:04]} 2. Nf3 {[%emt 0:00:39]} d6 {[%emt 0:00:09]} 3. Nc3 {[%emt 0:04:31]} Nf6 {[%emt 0:00:19]} 4. h3 {[%emt 0:08:41]} Nc6 {[%emt 0:04:32]} 5. Be2 {[%emt 0:02:45]} e5 {[%emt 0:01:51]} 6. d3 {[%emt 0:00:51]} Be7 {[%emt 0:01:49]} 7. Be3 {[%emt 0:03:54]} O-O {[%emt 0:00:39]} 8. Qd2 {[%emt 0:02:27]} d5 {[%emt 0:04:33]} 9. exd5 {[%emt 0:12:18]} Nxd5 {[%emt 0:03:36]} 10. O-O {[%emt 0:01:50]} b6 {[%emt 0:09:21]} 11. Nxd5 {[%emt 0:05:52]} Qxd5 {[%emt 0:00:07]} 12. Nh2 {[%emt 0:02:36]} Bb7 {[%emt 0:01:43]} 13. Bf3 {[%emt 0:01:39]} Qd7 {[%emt 0:00:42]} 14. c3 {[%emt 0:01:21]} f5 {[%emt 0:03:57]} 15. Qc2 {[%emt 0:00:05]} Kh8 {[%emt 0:02:51]} 16. Rad1 {[%emt 0:00:39]} Bd6 {[%emt 0:02:18]} 17. Rfe1 {[%emt 0:03:31]} Qc7 {[%emt 0:06:38]} 18. Bxc6 {[%emt 0:02:53]} Bxc6 {[%emt 0:00:45]} 19. Nf1 {[%emt 0:00:21]} f4 {[%emt 0:06:08]} 20. Bc1 {[%emt 0:00:10]} f3 {[%emt 0:04:16]} 21. g4 {[%emt 0:00:17]} Qd8 {[%emt 0:07:48]} 22. Re4 {[%emt 0:02:02]} Qh4 {[%emt 0:02:49]} 23. Kh2 {[%emt 0:00:12]} c4 {[%emt 0:10:08]} 24. Rxc4 {[%emt 0:10:19]} e4+ {[%emt 0:00:50]} 25. Ng3 {[%emt 0:01:34]} Bd7 {[%emt 0:07:58]} 26. Rxe4 {[%emt 0:01:44]} Rf4 {[%emt 0:00:04]} 27. Rh1 {[%emt 0:02:53]} Rxg4 {[%emt 0:08:02]} 28. Kg1 {[%emt 0:11:01]} Rxg3+ {[%emt 0:00:50]} 29. Kf1 {[%emt 0:00:02]} Rg4 {[%emt 0:02:18]} 30. Bg5 {[%emt 0:00:13]} Qh5 {[%emt 0:00:55]} 31. h4 {[%emt 0:00:14]} Rxg5 {[%emt 0:00:14]} 0-1

[Event "Mitropa Cup Open 2024"]
[Site "Apolda"]
[Date "2024.02.18"]
[Round "4.15"]
[White "Baenziger, Fabian"]
[Black "Lavrencic, Matic"]
[Result "1/2-1/2"]
[ECO "D38"]
[WhiteElo "2414"]
[BlackElo "2299"]
[Annotator "RC"]
[PlyCount "99"]
[EventDate "2024.02.15"]
[EventType "team-tourn"]
[EventCountry "GER"]
[SourceTitle "playchess.com"]
[Source "ChessBase"]
[SourceQuality "1"]
[WhiteTeam "Switzerland"]
[BlackTeam "Slovenia"]
[WhiteTeamCountry "SUI"]
[BlackTeamCountry "SLO"]
[TimeControl "40/5400+30:1800+30"]

1. d4 {[%emt 0:00:09]} Nf6 {[%emt 0:00:43]} 2. c4 {[%emt 0:01:24]} e6 {[%emt 0:00:17]} 3. Nf3 {[%emt 0:00:42]} d5 {[%emt 0:00:36]} 4. Nc3 {[%emt 0:00:52]} Bb4 {[%emt 0:01:16]} 5. cxd5 {[%emt 0:07:40]} exd5 {[%emt 0:00:26]} 6. Bg5 {[%emt 0:00:05]} h6 {[%emt 0:00:10]} 7. Bh4 {[%emt 0:00:07]} Bf5 {[%emt 0:00:10]} 8. e3 {[%emt 0:05:17]} Nbd7 {[%emt 0:00:29]} 9. Qb3 {[%emt 0:01:25]} Qe7 {[%emt 0:00:55]} 10. a3 {[%emt 0:12:59]} Bxc3+ {[%emt 0:03:30]} 11. Qxc3 {[%emt 0:00:05]} c6 {[%emt 0:03:47]} 12. Nd2 {[%emt 0:07:03]} O-O {[%emt 0:14:34]} 13. Be2 {[%emt 0:04:12]} Qe6 {[%emt 0:01:38]} 14. f3 {[%emt 0:07:10]} Rfe8 {[%emt 0:16:11]} 15. Bf2 {[%emt 0:01:47]} a5 {[%emt 0:04:22]} 16. a4 {[%emt 0:08:51]} b6 {[%emt 0:04:13]} 17. O-O {[%emt 0:00:28]} Rec8 {[%emt 0:05:29]} 18. Rfe1 {[%emt 0:06:07]} b5 {[%emt 0:05:25]} 19. axb5 {[%emt 0:05:39]} cxb5 {[%emt 0:00:09]} 20. Rxa5 {[%emt 0:00:10]} Rab8 {[%emt 0:06:19]} 21. Qb4 {[%emt 0:02:08]} Rc2 {[%emt 0:00:46]} 22. Rxb5 {[%emt 0:06:32]} Rxb5 {[%emt 0:00:58]} 23. Bxb5 {[%emt 0:00:07]} Qb6 {[%emt 0:00:08]} 24. e4 {[%emt 0:07:54]} dxe4 {[%emt 0:02:57]} 25. fxe4 {[%emt 0:01:05]} Bg6 {[%emt 0:00:22]} 26. Nc4 {[%emt 0:05:59]} Qb8 {[%emt 0:08:51]} 27. Bg3 {[%emt 0:01:15]} Qb7 {[%emt 0:01:39]} 28. Nd6 {[%emt 0:04:03]} Qb6 {[%emt 0:00:08]} 29. e5 {[%emt 0:01:35]} Nh5 {[%emt 0:05:31]} 30. Qa4 {[%emt 0:00:20]} Nxg3 {[%emt 0:00:51]} 31. Bxd7 {[%emt 0:00:04]} Ne2+ {[%emt 0:00:59]} 32. Kh1 {[%emt 0:00:01]} Qxd4 {[%emt 0:02:41]} 33. Qxd4 {[%emt 0:00:43]} Nxd4 {[%emt 0:00:05]} 34. b4 {[%emt 0:00:18]} Rb2 {[%emt 0:00:21]} 35. b5 {[%emt 0:00:09]} Bd3 {[%emt 0:00:32]} 36. Be8 {[%emt 0:00:19]} Nxb5 {[%emt 0:02:03]} 37. Bxf7+ {[%emt 0:00:42]} Kf8 {[%emt 0:00:04]} 38. Bc4 {[%emt 0:03:10]} Bxc4 {[%emt 0:01:48]} 39. Nxc4 {[%emt 0:00:01]} Rb4 {[%emt 0:00:51]} 40. Nb6 {[%emt 0:00:55]} Nc3 {[%emt 0:03:16]} 41. Nc8 {[%emt 0:30:42]} Re4 {[%emt 0:31:17]} 42. Rf1+ {[%emt 0:00:42]} Kg8 {[%emt 0:00:08]} 43. Ne7+ {[%emt 0:00:06]} Kh7 {[%emt 0:00:10]} 44. Nc6 {[%emt 0:00:01]} Rc4 {[%emt 0:03:59]} 45. Nd8 {[%emt 0:00:05]} Re4 {[%emt 0:00:17]} 46. e6 {[%emt 0:00:23]} Nd5 {[%emt 0:00:31]} 47. g3 {[%emt 0:00:06]} Nc7 {[%emt 0:00:17]} 48. Rf7 {[%emt 0:00:15]} Nxe6 {[%emt 0:00:16]} 49. Nxe6 {[%emt 0:00:02]} Rxe6 {[%emt 0:00:07]} 50. Kg2 {[%emt 0:03:36]} 1/2-1/2

[Event "Mitropa Cup Open 2024"]
[Site "Apolda"]
[Date "2024.02.18"]
[Round "4.16"]
[White "Olenik Campa, Rudi"]
[Black "Fecker, Noah"]
[Result "1/2-1/2"]
[ECO "B30"]
[WhiteElo "2299"]
[BlackElo "2397"]
[Annotator "TA"]
[PlyCount "60"]
[EventDate "2024.02.15"]
[EventType "team-tourn"]
[EventCountry "GER"]
[SourceTitle "playchess.com"]
[Source "ChessBase"]
[SourceQuality "1"]
[WhiteTeam "Slovenia"]
[BlackTeam "Switzerland"]
[WhiteTeamCountry "SLO"]
[BlackTeamCountry "SUI"]
[TimeControl "40/5400+30:1800+30"]

{[%evp 9,60,26,31,0,0,0,0,1,8,12,22,21,13,4,10,-9,-14,-11,0,0,0,0,0,0,0,-7,-6,-16,0,-8,-2,-6,0,0,0,-2,0,-4,-12,-6,0,0,0,0,0,0,0,0,0,0,0,0,0]} 1. e4 {[%emt 0:00:03]} c5 {[%emt 0:00:11]} 2. Nf3 {[%emt 0:00:07]} Nc6 {[%emt 0:00:15]} 3. Bb5 {[%emt 0:00:25]} e6 {[%emt 0:00:21]} 4. O-O {[%emt 0:01:45]} Nge7 {[%emt 0:00:57]} 5. Re1 {[%emt 0:00:19]} Nd4 {[%emt 0:00:43]} 6. Bf1 {[%emt 0:05:44]} Nec6 {[%emt 0:00:58] The position is equal.} 7. Nxd4 {[%emt 0:11:48]} cxd4 {[%emt 0:00:12]} 8. c3 {[%emt 0:00:19]} a6 {[%emt 0:01:38]} 9. Na3 {[%emt 0:04:44]} Bc5 {[%emt 0:07:35]} 10. Nc2 {[%emt 0:11:24]} O-O {[%emt 0:08:53]} 11. d3 {[%emt 0:07:20]} d5 {[%emt 0:17:53]} 12. cxd4 {[%emt 0:11:19]} (12. Nxd4 $5 Nxd4 13. Be3 $11) 12... Nxd4 {[%emt 0:01:34]} 13. Be3 {[%emt 0:01:03]} Nxc2 {[%emt 0:12:38]} 14. Bxc5 {[%emt 0:00:50]} Nxe1 {[%emt 0:09:47]} 15. Bxf8 {[%emt 0:00:09]} Qxf8 {[%emt 0:02:41]} 16. Qxe1 {[%emt 0:02:30]} dxe4 {[%emt 0:01:46]} 17. dxe4 {[%emt 0:07:18]} Bd7 {[%emt 0:00:10]} 18. b4 {[%emt 0:10:46]} Ba4 {[%emt 0:04:25]} 19. Rb1 {[%emt 0:07:08]} Rc8 {[%emt 0:04:39]} 20. b5 {[%emt 0:01:55]} Bxb5 {[%emt 0:01:42]} 21. Bxb5 {[%emt 0:00:29]} axb5 {[%emt 0:00:02]} 22. Rxb5 $11 {[%emt 0:00:16][%mdl 4096] Endgame. KQR-KQR} Qa3 {[%emt 0:01:14] [#] And now ...Rc1 would win.} 23. Rxb7 {[%emt 0:00:08]} h6 {[%emt 0:00:41]} 24. Rb1 {[%emt 0:00:52] Repels Rc1} Qxa2 {[%emt 0:00:18]} 25. Rc1 {[%emt 0:00:38]} Rxc1 {[%emt 0:00:37]} 26. Qxc1 {[%emt 0:00:03]} e5 {[%emt 0:00:55]} 27. g3 {[%emt 0:00:33]} Qe6 {[%emt 0:00:12] Dodges Qc8+} 28. Kg2 {[%emt 0:00:26]} Kh7 {[%emt 0:00:10]} 29. Qc3 {[%emt 0:00:17]} Kg8 {[%emt 0:00:37]} 30. h3 {[%emt 0:00:17]} Kh7 {[%emt 0:00:04] Not much happened in this game.   Weighted Error Value: White=0.04 (flawless) /Black=0.02 (flawless) .  OK:         	White=10    	Black=10     Best:        	White=2     	---} 1/2-1/2

[Event "Mitropa Cup Open 2024"]
[Site "Apolda"]
[Date "2024.02.18"]
[Round "4.17"]
[White "Plenca, Jadranko"]
[Black "Girel, Joseph"]
[Result "1/2-1/2"]
[ECO "C78"]
[WhiteElo "2429"]
[BlackElo "2492"]
[Annotator "TA"]
[PlyCount "111"]
[EventDate "2024.02.15"]
[EventType "team-tourn"]
[EventCountry "GER"]
[SourceTitle "playchess.com"]
[Source "ChessBase"]
[SourceQuality "1"]
[WhiteTeam "Croatia"]
[BlackTeam "France"]
[WhiteTeamCountry "CRO"]
[BlackTeamCountry "FRA"]
[TimeControl "40/5400+30:1800+30"]

{[%evp 34,111,-67,-62,-66,-68,-62,-73,-46,-72,-72,-68,-38,-63,-37,-37,-34,-31,-29,-61,-62,-89,-72,-81,-82,-76,-89,-90,-95,-91,-70,-64,-70,-93,-45,-81,-103,-68,-76,-134,-50,-58,-57,-57,-41,-97,-31,-72,-70,-71,-43,-53,-56,-56,0,0,11,12,42,12,13,0,0,0,0,-8,-8,-8,-8,-8,-8,-8,-8,-8,349,0,0,-8,320,0]} 1. e4 {[%emt 0:00:04]} e5 {[%emt 0:00:44]} 2. Nf3 {[%emt 0:00:26]} Nc6 {[%emt 0:00:15]} 3. Bb5 {[%emt 0:01:16]} a6 {[%emt 0:00:22]} 4. Ba4 {[%emt 0:00:07]} Nf6 {[%emt 0:00:22]} 5. O-O {[%emt 0:02:21]} Bc5 {[%emt 0:01:24]} 6. Bxc6 {[%emt 0:05:28]} dxc6 {[%emt 0:00:12]} 7. Nxe5 {[%emt 0:00:19] C78: Ruy Lopez: Archangelsk and Möller Defences.} Nxe4 {[%emt 0:09:14]} 8. Qe2 {[%emt 0:08:59]} Qd5 {[%emt 0:06:10]} 9. d3 {[%emt 0:08:03]} Qxe5 {[%emt 0:01:39]} 10. Qxe4 {[%emt 0:02:39]} Qxe4 {[%emt 0:10:27]} 11. dxe4 {[%emt 0:00:06]} Be6 {[%emt 0:01:02]} 12. Re1 $146 {[%emt 0:10:35]} ({Predecessor:} 12. Bf4 O-O-O 13. Nc3 h6 14. Rad1 Bd4 15. a3 c5 16. Rfe1 Rd7 17. h4 Rhd8 18. Rd3 {0-1 Stoenescu,R (2107)-Venkatesh,M (2479) Bastia op 2022 (3)}) 12... O-O-O {[%emt 0:02:39]} 13. Nd2 {[%emt 0:01:24]} Rhe8 {[%emt 0:13:27]} 14. Nf1 {[%emt 0:10:32]} Bb4 {[%emt 0:06:26]} 15. c3 {[%emt 0:01:16]} Bf8 {[%emt 0:00:07]} 16. Be3 {[%emt 0:04:13]} Rd3 {[%emt 0:02:43]} 17. Nd2 {[%emt 0:04:57]} f6 {[%emt 0:02:32]} 18. f3 {[%emt 0:14:28]} Red8 {[%emt 0:06:46]} 19. Nf1 $1 {[%emt 0:02:29]} a5 {[%emt 0:02:25]} 20. Kf2 {[%emt 0:01:57]} b6 {[%emt 0:01:43]} 21. a3 {[%emt 0:04:48]} Kb7 {[%emt 0:02:29]} 22. Rac1 {[%emt 0:04:05]} b5 {[%emt 0:07:50]} 23. Rc2 {[%emt 0:01:24]} c5 {[%emt 0:01:05]} 24. Rd2 {[%emt 0:03:09]} c4 {[%emt 0:00:39]} 25. Red1 {[%emt 0:00:59]} c5 {[%emt 0:02:58]} 26. Ke2 {[%emt 0:01:10]} Kc6 {[%emt 0:01:39]} 27. Bf4 {[%emt 0:01:30]} g5 {[%emt 0:01:07]} 28. Bg3 {[%emt 0:00:10]} f5 {[%emt 0:00:50]} 29. exf5 {[%emt 0:02:29]} (29. Rxd3 $2 cxd3+ 30. Ke1 Bb3 $19) 29... Bxf5 {[%emt 0:00:12]} 30. Ne3 {[%emt 0:01:16]} Re8 {[%emt 0:04:55]} 31. Rxd3 {[%emt 0:00:44]} Bxd3+ {[%emt 0:03:49]} 32. Kd2 {[%emt 0:00:42]} b4 {[%emt 0:01:56]} 33. Re1 {[%emt 0:00:11] [#]} Rd8 {[%emt 0:00:55]} (33... Kb5 $1 $17 34. Nd5 Rxe1 35. Kxe1 h5) 34. Ng4 {[%emt 0:01:09]} Kb5 {[%emt 0:02:04]} 35. axb4 {[%emt 0:00:27]} axb4 {[%emt 0:01:48]} 36. Bc7 {[%emt 0:00:49]} (36. Kc1 $142) 36... Rc8 {[%emt 0:00:59]} ({Better is} 36... Rd7 $17 37. Bg3 Bf5+ 38. Kc1 Bg7) 37. Be5 $15 {[%emt 0:00:32]} Ra8 {[%emt 0:00:20]} 38. Nf2 {[%emt 0:01:20]} Bg6 {[%emt 0:00:15]} 39. Ne4 {[%emt 0:00:08] [#]} (39. Re2 $15) 39... g4 {[%emt 0:02:37]} (39... Ra2 $1 $17 40. Rb1 (40. Kc1 g4) 40... Bxe4 41. fxe4 h5) 40. Ke3 {[%emt 0:01:12]} gxf3 {[%emt 0:00:39]} 41. gxf3 {[%emt 0:30:06]} Ra2 {[%emt 0:02:45]} 42. cxb4 {[%emt 0:00:00]} cxb4 {[%emt 0:00:40]} 43. Rd1 {[%emt 0:00:00]} Bxe4 {[%emt 0:10:10]} (43... Ra8 $15) 44. Kxe4 $11 {[%emt 0:00:00]} Ka4 {[%emt 0:08:57]} 45. Rd8 {[%emt 0:00:00]} Bh6 {[%emt 0:01:19]} 46. f4 {[%emt 0:00:00]} Kb3 {[%emt 0:01:39]} 47. Rd7 {[%emt 0:00:00]} Rxb2 {[%emt 0:03:39]} 48. Bxb2 {[%emt 0:00:00]} (48. Rxh7 $2 Re2+ (48... Rxh2 $2 49. Rb7 $19) 49. Kf3 Rxh2 $19) 48... Kxb2 {[%emt 0:00:02]} 49. Rb7 {[%emt 0:00:00]} (49. Rxh7 $2 c3 50. Rxh6 c2 $19) 49... Bf8 {[%emt 0:00:58]} (49... b3 {looks sharper.} 50. Kd4 c3 51. Kc4 c2) 50. Rc7 $1 {[%emt 0:00:00]} c3 {[%emt 0:02:41]} 51. Kd3 $1 {[%emt 0:00:00]} Bd6 {[%emt 0:00:40]} 52. Rc4 $1 {[%emt 0:00:00]} Be7 {[%emt 0:00:55]} 53. f5 {[%emt 0:00:34]} Ka3 $2 {[%emt 0:00:52][%mdl 8192]} (53... b3 $11 {and Black is okay.} 54. Rxc3 Ka2) 54. Rc6 $2 {[%emt 0:01:25]} (54. Rc7 $18 Bd8 (54... Bf6 55. Rc6 $18) 55. Rc8 (55. Rxh7 Kb2 $11)) 54... Kb2 $1 $11 {[%emt 0:00:50]} 55. Rc4 {[%emt 0:00:49]} Ka3 $2 {[%emt 0:01:24][%mdl 8192]} (55... b3 $11 56. Rxc3 Ka2) 56. Rc6 $2 {[%emt 0:01:01]} (56. Rc7 $18 Bd8 (56... Bf6 $2 57. Rc6 $18) 57. Rc8 (57. Rxh7 Kb2 $11)) 1/2-1/2

[Event "Mitropa Cup Open 2024"]
[Site "Apolda"]
[Date "2024.02.18"]
[Round "4.18"]
[White "Makkar, Rajat"]
[Black "Ivekovic, Bozidar"]
[Result "1-0"]
[ECO "A90"]
[WhiteElo "2453"]
[BlackElo "2399"]
[Annotator "RC"]
[PlyCount "110"]
[EventDate "2024.02.15"]
[EventType "team-tourn"]
[EventCountry "GER"]
[SourceTitle "playchess.com"]
[Source "ChessBase"]
[SourceQuality "1"]
[WhiteTeam "France"]
[BlackTeam "Croatia"]
[WhiteTeamCountry "FRA"]
[BlackTeamCountry "CRO"]
[TimeControl "40/5400+30:1800+30"]

1. d4 {[%emt 0:00:04]} f5 {[%emt 0:00:11]} 2. g3 {[%emt 0:00:29]} Nf6 {[%emt 0:00:08]} 3. Nf3 {[%emt 0:00:05]} e6 {[%emt 0:00:08]} 4. Bg2 {[%emt 0:00:10]} d5 {[%emt 0:00:05]} 5. O-O {[%emt 0:00:44]} Bd6 {[%emt 0:00:04]} 6. c4 {[%emt 0:00:18]} O-O {[%emt 0:00:05]} 7. b3 {[%emt 0:00:22]} b6 {[%emt 0:03:45]} 8. Ba3 {[%emt 0:01:23]} Bb7 {[%emt 0:02:43]} 9. Qc1 {[%emt 0:03:41]} Ne4 {[%emt 0:14:18]} 10. Ne5 {[%emt 0:09:14]} c5 {[%emt 0:07:48]} 11. Bb2 {[%emt 0:06:56]} Nd7 {[%emt 0:09:02]} 12. cxd5 {[%emt 0:05:27]} exd5 {[%emt 0:12:50]} 13. Nd3 {[%emt 0:03:10]} Rc8 {[%emt 0:00:44]} 14. dxc5 {[%emt 0:02:46]} bxc5 {[%emt 0:00:43]} 15. Nf4 {[%emt 0:01:50]} Qe7 {[%emt 0:02:20]} 16. Nc3 {[%emt 0:02:24]} Nb6 {[%emt 0:03:29]} 17. Nxe4 {[%emt 0:17:03]} fxe4 {[%emt 0:03:25]} 18. Bh3 {[%emt 0:01:16]} Bxf4 {[%emt 0:00:25]} 19. gxf4 {[%emt 0:00:21]} Rc6 {[%emt 0:00:06]} 20. Be5 {[%emt 0:02:27]} Rh6 {[%emt 0:11:28]} 21. Bg2 {[%emt 0:01:09]} Nd7 {[%emt 0:00:15]} 22. h3 {[%emt 0:04:08]} Nxe5 {[%emt 0:12:52]} 23. fxe5 {[%emt 0:00:06]} d4 {[%emt 0:02:08]} 24. b4 {[%emt 0:02:50]} cxb4 {[%emt 0:10:31]} 25. Qc4+ {[%emt 0:00:22]} Kh8 {[%emt 0:00:41]} 26. Qxd4 {[%emt 0:00:40]} Bc8 {[%emt 0:02:40]} 27. Qxe4 {[%emt 0:08:39]} Bxh3 {[%emt 0:00:05]} 28. f4 {[%emt 0:07:18]} Bxg2 {[%emt 0:00:25]} 29. Kxg2 {[%emt 0:00:17]} Qh4 {[%emt 0:00:19]} 30. Kf3 {[%emt 0:00:09]} Rg6 {[%emt 0:00:55]} 31. Ke3 {[%emt 0:00:27]} Qe7 {[%emt 0:00:22]} 32. Rac1 {[%emt 0:00:23]} Ra6 {[%emt 0:00:06]} 33. Rh1 {[%emt 0:00:39]} h6 {[%emt 0:00:14]} 34. Rc6 {[%emt 0:00:13]} Ra3+ {[%emt 0:00:58]} 35. Kf2 {[%emt 0:00:46]} Qg5 {[%emt 0:00:07]} 36. Rf6 {[%emt 0:01:02]} Rxf6 {[%emt 0:00:43]} 37. exf6 {[%emt 0:00:06]} Qxf6 {[%emt 0:00:26]} 38. Qxb4 {[%emt 0:00:18]} Qb6+ {[%emt 0:00:56]} 39. Qxb6 {[%emt 0:01:13]} axb6 {[%emt 0:00:04]} 40. Rb1 {[%emt 0:00:58]} Rxa2 {[%emt 0:01:04]} 41. Rxb6 {[%emt 0:30:38]} Ra4 {[%emt 0:30:47]} 42. Kf3 {[%emt 0:00:58]} Kg8 {[%emt 0:00:00]} 43. e4 {[%emt 0:00:00]} Ra7 {[%emt 0:00:00]} 44. e5 {[%emt 0:00:00]} Kf7 {[%emt 0:00:00]} 45. f5 {[%emt 0:00:00]} Ke7 {[%emt 0:00:00]} 46. Kg4 {[%emt 0:00:00]} Kf7 {[%emt 0:00:00]} 47. Kh5 {[%emt 0:00:00]} Re7 {[%emt 0:00:00]} 48. Rb5 {[%emt 0:00:00]} Ra7 {[%emt 0:00:00]} 49. Rd5 {[%emt 0:00:00]} Re7 {[%emt 0:00:00]} 50. e6+ {[%emt 0:00:00]} Kf6 {[%emt 0:03:05]} 51. Rd7 {[%emt 0:00:00]} g6+ {[%emt 0:00:02]} 52. fxg6 {[%emt 0:00:00]} Re8 {[%emt 0:00:03]} 53. Rf7+ {[%emt 0:00:00]} Kxe6 {[%emt 0:00:06]} 54. Rf1 {[%emt 0:00:00]} Ra8 {[%emt 0:01:48]} 55. g7 {[%emt 0:00:00]} Kd5 {[%emt 0:02:31]} 1-0

[Event "Mitropa Cup Open 2024"]
[Site "Apolda"]
[Date "2024.02.18"]
[Round "4.19"]
[White "Tomulic, Teo"]
[Black "Velten, Paul"]
[Result "1/2-1/2"]
[ECO "C08"]
[WhiteElo "2386"]
[BlackElo "2470"]
[Annotator "RC"]
[PlyCount "47"]
[EventDate "2024.02.15"]
[EventType "team-tourn"]
[EventCountry "GER"]
[SourceTitle "playchess.com"]
[Source "ChessBase"]
[SourceQuality "1"]
[WhiteTeam "Croatia"]
[BlackTeam "France"]
[WhiteTeamCountry "CRO"]
[BlackTeamCountry "FRA"]
[TimeControl "40/5400+30:1800+30"]

1. e4 {[%emt 0:00:02]} e6 {[%emt 0:00:58]} 2. d4 {[%emt 0:00:05]} d5 {[%emt 0:00:46]} 3. Nd2 {[%emt 0:00:04]} c5 {[%emt 0:01:50]} 4. exd5 {[%emt 0:00:05]} exd5 {[%emt 0:01:52]} 5. Bb5+ {[%emt 0:01:33]} Bd7 {[%emt 0:00:25]} 6. Qe2+ {[%emt 0:06:53]} Be7 {[%emt 0:06:02]} 7. dxc5 {[%emt 0:01:16]} Nf6 {[%emt 0:00:28]} 8. Ngf3 {[%emt 0:02:07]} O-O {[%emt 0:00:56]} 9. O-O {[%emt 0:00:17]} Bxc5 {[%emt 0:05:55]} 10. Bxd7 {[%emt 0:01:16]} Nbxd7 {[%emt 0:02:05]} 11. Nb3 {[%emt 0:00:23]} Re8 {[%emt 0:02:46]} 12. Qd3 {[%emt 0:01:30]} Bb6 {[%emt 0:00:49]} 13. Bf4 {[%emt 0:03:01]} Re4 {[%emt 0:01:47]} 14. Bg3 {[%emt 0:06:43]} Qe7 {[%emt 0:03:18]} 15. Rad1 {[%emt 0:16:04]} Re8 {[%emt 0:03:31]} 16. c3 {[%emt 0:00:35]} a6 {[%emt 0:17:23]} 17. Qb1 {[%emt 0:13:55]} Nf8 {[%emt 0:08:00]} 18. Nbd4 {[%emt 0:12:27]} Nh5 {[%emt 0:03:51]} 19. Nd2 {[%emt 0:01:50]} Nxg3 {[%emt 0:37:18]} 20. hxg3 {[%emt 0:00:21]} Re5 {[%emt 0:00:00]} 21. N2f3 {[%emt 0:00:49]} Re4 {[%emt 0:00:00]} 22. Nd2 {[%emt 0:00:23]} Re5 {[%emt 0:00:00]} 23. N2f3 {[%emt 0:00:29]} Re4 {[%emt 0:00:00]} 24. Nd2 1/2-1/2